{"text_format":"2","workbook":"xlsx","n_sheets":1,"sheets":["Hallgatók jelölése"],"not_rendered":{"charts":0,"images":0,"macros":0,"external_links":0,"defined_names":2,"comments":0,"pivot_tables":0},"unopened":[],"bounds":{"document_bytes":16777216,"sheet_cells":100000,"run_cost":"one","rows_first":2000,"rows_last":500,"rows_between":2000,"halvings":0,"cell_chars":16384,"cell_head_chars":4096},"cells_cut":0,"cells_raw":0,"read":"whole","date_system":"1900"}

{"sheet":"Hallgatók jelölése","index":0,"n_rows":104,"n_cols":26,"rows_kept":104,"cut":false,"hidden":false,"merged":[[29,2,29,4],[15,2,15,4],[17,2,17,4],[19,2,19,4],[15,9,15,11],[21,2,21,4],[1,0,1,12],[5,1,5,8],[11,1,11,4],[11,8,11,11],[13,2,13,4],[13,9,13,11],[31,2,31,4],[33,2,33,4],[33,9,33,11],[35,9,35,11],[17,9,17,11],[19,9,19,11],[21,9,21,11],[23,9,23,11],[25,9,25,11],[27,9,27,11],[29,9,29,11],[31,9,31,11],[35,2,35,4],[23,2,23,4],[25,2,25,4],[27,2,27,4]]}
[]
["Tanszéki pályázási adatok EUGLOH partnerintézményekbe"]
[{"$nulls":15},"D  MUNCHEN01","Ludwig-Maximilians-Universität München",null,"Karok:",null,"Alapi Tünde",null,null,"SZTE ÁJTK Alkotmányjogi Tanszék"]
[null,"Az SZTE",null,"kar",{"$nulls":11},"F  EVRY04","Université d'Evry-Val-d'Essonne",null,"ÁJTK",null,"Antal Márk",null,null,"SZTE ÁJTK Bűnügyi Tudományok Intézete"]
[{"$nulls":15},"F  PARIS077","Institut des sciences et industries du vivant et de l'environnement (AgroParisTech)",null,"ÁOK",null,"B. Tóth Ágnes",null,null,"SZTE ÁJTK Civilisztikai Tudományok Intézete"]
[{"$nulls":9},"tanszék",{"$nulls":5},"F  GIF-YVE03","CentraleSupelec",null,"BBMK",null,"Bácskai Mihály",null,null,"SZTE ÁJTK Közigazgatási Jogi Tanszék"]
[{"$nulls":15},"F  ORSAY02","Institut d'Optique Graduate School",null,"BTK",null,"Balog Edit",null,null,"SZTE ÁJTK Magyar Jogtörténeti Tanszék"]
[null,"2020/2021. tanévi ERASMUS+ ösztöndíjaira beérkezett hallgatói pályázatok száma:",{"$nulls":13},"F  PARIS481","Université Paris-Saclay",null,"ETSZK",null,"Békési József",null,null,"SZTE ÁJTK Munkajogi és Szociális Jogi Tanszék"]
[{"$nulls":15},"F  VERSAIL11","Université Versailles-Saint-Quentin-en-Yvelines",null,"FOK",null,"Benkő Zsolt István",null,null,"SZTE ÁJTK Nemzetközi és Regionális Tanulmányok Intézet"]
[{"$nulls":15},"P  PORTO02","Universidade do Porto",null,"GTK",null,"Berta Tibor",null,null,"SZTE ÁJTK Nemzetközi Jogi és Európa-jogi tanszék"]
[{"$nulls":15},"S  LUND01","Lunds Universitet",null,"GYTK",null,"Bíbok Károly",null,null,"SZTE ÁJTK Nemzetközi Magánjogi Tanszék"]
[null,"Partneregyetem kódja és neve",null,null,null,"Jelentkezők\nszáma",null,null,"Partneregyetem kódja és neve",null,null,null,"Jelentkezők\nszáma",{"$nulls":5},"JGYPK",null,"Bozsó Gábor",null,null,"SZTE ÁJTK Összehasonlító Jogi Intézet"]
[{"$nulls":18},"MGK",null,"Bucin Mihaela Geni",null,null,"SZTE ÁJTK Politológiai Tanszék"]
[1,null,{"$f":"IF(ISERROR(VLOOKUP(B14,$P$3:$Q$11,2,FALSE)),\"\",VLOOKUP(B14,$P$3:$Q$11,2,FALSE))","v":""},null,null,null,"fő",13,null,{"$f":"IF(ISERROR(VLOOKUP(I14,$P$3:$Q$11,2,FALSE)),\"\",VLOOKUP(I14,$P$3:$Q$11,2,FALSE))","v":""},null,null,null,"fő",{"$nulls":4},"MK",null,"Csányi Erzsébet",null,null,"SZTE ÁJTK Római Jogi Tanszék"]
[{"$nulls":18},"TTIK",null,"Csetényi Korinna",null,null,"SZTE ÁJTK Üzleti Jogi Intézet"]
[2,null,{"$f":"IF(ISERROR(VLOOKUP(B16,$P$3:$Q$11,2,FALSE)),\"\",VLOOKUP(B16,$P$3:$Q$11,2,FALSE))","v":""},null,null,null,"fő",14,null,{"$f":"IF(ISERROR(VLOOKUP(I16,$P$3:$Q$11,2,FALSE)),\"\",VLOOKUP(I16,$P$3:$Q$11,2,FALSE))","v":""},null,null,null,"fő",{"$nulls":6},"Deákné Berkó Szilvia",null,null,"SZTE Általános Orvostudományi Kar"]
[{"$nulls":20},"Dékány Imre",null,null,"SZTE ÁOK Orvosi Informatikai Intézet"]
[3,null,{"$f":"IF(ISERROR(VLOOKUP(B18,$P$3:$Q$11,2,FALSE)),\"\",VLOOKUP(B18,$P$3:$Q$11,2,FALSE))","v":""},null,null,null,"fő",15,null,{"$f":"IF(ISERROR(VLOOKUP(I18,$P$3:$Q$11,2,FALSE)),\"\",VLOOKUP(I18,$P$3:$Q$11,2,FALSE))","v":""},null,null,null,"fő",{"$nulls":6},"Dékány Renáta",null,null,"SZTE BBMK Bartók Béla Művészeti Kar"]
[{"$nulls":20},"Deli Alexandra Viktória",null,null,"SZTE BTK Altajisztika Tanszék"]
[4,null,{"$f":"IF(ISERROR(VLOOKUP(B20,$P$3:$Q$11,2,FALSE)),\"\",VLOOKUP(B20,$P$3:$Q$11,2,FALSE))","v":""},null,null,null,"fő",16,null,{"$f":"IF(ISERROR(VLOOKUP(I20,$P$3:$Q$11,2,FALSE)),\"\",VLOOKUP(I20,$P$3:$Q$11,2,FALSE))","v":""},null,null,null,"fő",{"$nulls":6},"Dombi Edina",null,null,"SZTE BTK Általános Nyelvészeti Tanszék"]
[{"$nulls":20},"Doró Katalin",null,null,"SZTE BTK Angol-Amerikai Intézet"]
[5,null,{"$f":"IF(ISERROR(VLOOKUP(B22,$P$3:$Q$11,2,FALSE)),\"\",VLOOKUP(B22,$P$3:$Q$11,2,FALSE))","v":""},null,null,null,"fő",17,null,{"$f":"IF(ISERROR(VLOOKUP(I22,$P$3:$Q$11,2,FALSE)),\"\",VLOOKUP(I22,$P$3:$Q$11,2,FALSE))","v":""},null,null,null,"fő",{"$nulls":6},"Durst Péter",null,null,"SZTE BTK Angol-Amerikai Intézet, Fordító- tolmácsképző és Hungarológia Központ"]
[{"$nulls":20},"Erdősi Erika",null,null,"SZTE BTK Filozófia Tanszék"]
[6,null,{"$f":"IF(ISERROR(VLOOKUP(B24,$P$3:$Q$11,2,FALSE)),\"\",VLOOKUP(B24,$P$3:$Q$11,2,FALSE))","v":""},null,null,null,"fő",18,null,{"$f":"IF(ISERROR(VLOOKUP(I24,$P$3:$Q$11,2,FALSE)),\"\",VLOOKUP(I24,$P$3:$Q$11,2,FALSE))","v":""},null,null,null,"fő",{"$nulls":6},"Ezio Bernardelli",null,null,"SZTE BTK Finnugor Tanszék"]
[{"$nulls":20},"Farkas Attila",null,null,"SZTE BTK Francia Nyelvi és Irodalmi Tanszék"]
[7,null,{"$f":"IF(ISERROR(VLOOKUP(B26,$P$3:$Q$11,2,FALSE)),\"\",VLOOKUP(B26,$P$3:$Q$11,2,FALSE))","v":""},null,null,null,"fő",19,null,{"$f":"IF(ISERROR(VLOOKUP(I26,$P$3:$Q$11,2,FALSE)),\"\",VLOOKUP(I26,$P$3:$Q$11,2,FALSE))","v":""},null,null,null,"fő",{"$nulls":6},"Farkas Baráthi Mónika",null,null,"SZTE BTK Germán Filológiai Intézet"]
[{"$nulls":20},"Finta Regina",null,null,"SZTE BTK Hispanisztika Tanszék"]
[8,null,{"$f":"IF(ISERROR(VLOOKUP(B28,$P$3:$Q$11,2,FALSE)),\"\",VLOOKUP(B28,$P$3:$Q$11,2,FALSE))","v":""},null,null,null,"fő",20,null,{"$f":"IF(ISERROR(VLOOKUP(I28,$P$3:$Q$11,2,FALSE)),\"\",VLOOKUP(I28,$P$3:$Q$11,2,FALSE))","v":""},null,null,null,"fő",{"$nulls":6},"Fogarasi György",null,null,"SZTE BTK Klasszika-Filológia Tanszék"]
[{"$nulls":20},"Kórus Péter",null,null,"SZTE BTK Kommunikáció- és Médiatudományi Tanszék"]
[9,null,{"$f":"IF(ISERROR(VLOOKUP(B30,$P$3:$Q$11,2,FALSE)),\"\",VLOOKUP(B30,$P$3:$Q$11,2,FALSE))","v":""},null,null,null,"fő",21,null,{"$f":"IF(ISERROR(VLOOKUP(I30,$P$3:$Q$11,2,FALSE)),\"\",VLOOKUP(I30,$P$3:$Q$11,2,FALSE))","v":""},null,null,null,"fő",{"$nulls":6},"Gaál Zsuzsanna",null,null,"SZTE BTK Könyvtár- és Humán Információtudományi Tanszék"]
[{"$nulls":20},"Gál József",null,null,"SZTE BTK Középkori Egyetemes Történeti Tanszék"]
[10,null,{"$f":"IF(ISERROR(VLOOKUP(B32,$P$3:$Q$11,2,FALSE)),\"\",VLOOKUP(B32,$P$3:$Q$11,2,FALSE))","v":""},null,null,null,"fő",22,null,{"$f":"IF(ISERROR(VLOOKUP(I32,$P$3:$Q$11,2,FALSE)),\"\",VLOOKUP(I32,$P$3:$Q$11,2,FALSE))","v":""},null,null,null,"fő",{"$nulls":6},"Gál Zsuzsanna",null,null,"SZTE BTK Középkori és Kora Újkori Magyar Történeti Tanszék"]
[{"$nulls":20},"Galamb György",null,null,"SZTE BTK Magyar Irodalmi Tanszék"]
[11,null,{"$f":"IF(ISERROR(VLOOKUP(B34,$P$3:$Q$11,2,FALSE)),\"\",VLOOKUP(B34,$P$3:$Q$11,2,FALSE))","v":""},null,null,null,"fő",23,null,{"$f":"IF(ISERROR(VLOOKUP(I34,$P$3:$Q$11,2,FALSE)),\"\",VLOOKUP(I34,$P$3:$Q$11,2,FALSE))","v":""},null,null,null,"fő",{"$nulls":6},"Gera Magdolna",null,null,"SZTE BTK Magyar Nyelvészeti Tanszék"]
[{"$nulls":20},"Gergely Árpád László",null,null,"SZTE BTK Magyar Nyelvi és Irodalmi Intézet, Vizuális Kultúra és Irodalomtudomány Tanszék"]
[12,null,{"$f":"IF(ISERROR(VLOOKUP(B36,$P$3:$Q$11,2,FALSE)),\"\",VLOOKUP(B36,$P$3:$Q$11,2,FALSE))","v":""},null,null,null,"fő",24,null,{"$f":"IF(ISERROR(VLOOKUP(I36,$P$3:$Q$11,2,FALSE)),\"\",VLOOKUP(I36,$P$3:$Q$11,2,FALSE))","v":""},null,null,null,"fő",{"$nulls":6},"Gulyás Sándor",null,null,"SZTE BTK Néprajzi és Kulturális Antropológiai Tanszék"]
[{"$nulls":20},"Gyenge Balázs",null,null,"SZTE BTK Neveléstudományi Intézet"]
[{"$nulls":20},"Hajdú József",null,null,"SZTE BTK Olasz Nyelvi és Irodalmi Tanszék"]
[{"$nulls":20},"Hegyi Ádám",null,null,"SZTE BTK Összehasonlító Irodalomtudományi Tanszék"]
[{"$nulls":20},"Hunyadi Zsolt",null,null,"SZTE BTK Pszichológia Tanszék"]
[{"$nulls":20},"Ivaskó Lívia",null,null,"SZTE BTK Régészeti Tanszék"]
[{"$nulls":20},"Jakab Éva",null,null,"SZTE BTK Szláv Intézet"]
[{"$nulls":20},"Jámbori Szilvia",null,null,"SZTE BTK Szociológia Tanszék"]
[{"$nulls":20},"Józsa Krisztián",null,null,"SZTE BTK Történeti Segédtudományok Tanszék"]
[{"$nulls":20},"Csatlós Erzsébet",null,null,"SZTE BTK Újkori Egyetemes Történeti és Mediterrán Tanulmányok Tanszék"]
[{"$nulls":20},"Juhász Krisztina",null,null,"SZTE BTK Vallástudományi Tanszék"]
[{"$nulls":20},"Karsai Krisztina",null,null,"SZTE ETSZK Ápolási Tanszék"]
[{"$nulls":20},"Katona Péter",null,null,"SZTE ETSZK Fizioterápiás Tanszék"]
[{"$nulls":20},"Katona Zsolt",null,null,"SZTE ETSZK Szociális Munka és Szociálpolitika Tanszék"]
[{"$nulls":20},"Keczer Gabriella",null,null,"SZTE Fogorvostudományi Kar"]
[{"$nulls":20},"Kincsesné Nagy Éva",null,null,"SZTE Gazdaságtudományi Kar"]
[{"$nulls":20},"Kis Bernadett",null,null,"SZTE GYTK Gyógyszertechnológiai és Gyógyszerfelügyeleti Intézet"]
[{"$nulls":20},"Kiss Márton",null,null,"SZTE JGYPK Alkalmazott Egészségtudományi és Egészségfejlesztési Intézet"]
[{"$nulls":20},"Kiss Tímea",null,null,"SZTE JGYPK Alkalmazott Humántudományi Intézet, Alkalmazott Nyelvészeti Tanszék"]
[{"$nulls":20},"Kónya Zoltán",null,null,"SZTE JGYPK Alkalmazott Pedagógiai és Pszichológiai Tanszék"]
[{"$nulls":20},"Kovács Krisztina Ágnes",null,null,"SZTE JGYPK Alkalmazott Társadalomismereti és Kisebbségpolitikai Intézet"]
[{"$nulls":20},"Kökény Andrea",null,null,"SZTE JGYPK Alkalmazott Természettudományi Intézet, Általános és Környezetfizikai Tanszék"]
[{"$nulls":20},"Krémer Sándor",null,null,"SZTE JGYPK Alkalmazott Természettudományi Intézet, Informatika Alkalmazásai Tanszék"]
[{"$nulls":20},"Kruzslicz Péter",null,null,"SZTE JGYPK Alkalmazott Természettudományi Intézet, Technika Tanszék"]
[{"$nulls":20},"Kürtösi Katalin",null,null,"SZTE JGYPK Felnőttképzési Intézet"]
[{"$nulls":20},"Maczelka Noémi",null,null,"SZTE JGYPK Gyógypedagógus-képző Intézet"]
[{"$nulls":20},"Mezei Péter",null,null,"SZTE JGYPK Modern Nyelvek és Kultúrák Tanszék, Angol Szakcsoport"]
[{"$nulls":20},"Mód László",null,null,"SZTE JGYPK Modern Nyelvek és Kultúrák Tanszék, Francia Szakcsoport"]
[{"$nulls":20},"Nagy Csongor István",null,null,"SZTE JGYPK Modern Nyelvek és Kultúrák Tanszék, Orosz Szakcsoport"]
[{"$nulls":20},"Nagy Gábor Dániel",null,null,"SZTE JGYPK Művészeti Intézet, Ének-Zene Tanszék"]
[{"$nulls":20},"Nagy Gyula",null,null,"SZTE JGYPK Művészeti Intézet, Rajz-Művészettörténeti Tanszék"]
[{"$nulls":20},"Nagyillés János",null,null,"SZTE JGYPK Nemzetiségi Intézet, Német Nemzetiségi Tanszék"]
[{"$nulls":20},"Nánai László",null,null,"SZTE JGYPK Nemzetiségi Intézet, Román Nyelv és Irodalom Tanszék"]
[{"$nulls":20},"Nóbik Attila Dr.",null,null,"SZTE JGYPK Nemzetiségi Intézet, Szlovák Nyelv és Irodalom Tanszék"]
[{"$nulls":20},"Nyári Tibor",null,null,"SZTE JGYPK Szakképzési, Távoktatási és Továbbképzési Intézet"]
[{"$nulls":20},"Orosz Klára",null,null,"SZTE JGYPK Tanító- és Óvóképző Intézet, Óvóképző szakcsoport"]
[{"$nulls":20},"Pálinkó István",null,null,"SZTE JGYPK Tanító- és Óvóképző Intézet, Tanítóképző Szakcsoport"]
[{"$nulls":20},"Pavlovits Tamás",null,null,"SZTE JGYPK Testnevelés és Sporttudományi Intézet"]
[{"$nulls":20},"Pluhár András",null,null,"SZTE Mérnöki Kar"]
[{"$nulls":20},"Pusztai Bertalan",null,null,"SZTE MGK Dékáni Hivatal"]
[{"$nulls":20},"Pusztai Varga Ildikó",null,null,"SZTE TTIK Alkalmazott és Környezeti Kémiai Tanszék"]
[{"$nulls":20},"Rábai Krisztina",null,null,"SZTE TTIK Ásványtani, Geokémiai és Kőzettani Tanszék"]
[{"$nulls":20},"Rácz Lajos",null,null,"SZTE TTIK Biológus Tanszékcsoport"]
[{"$nulls":20},"Rákhely Gábor",null,null,"SZTE TTIK Biotechnológiai Tanszék"]
[{"$nulls":20},"Sághy Miklós",null,null,"SZTE TTIK Éghajlattani és Tájföldrajzi Tanszék"]
[{"$nulls":20},"Sánta Tamás",null,null,"SZTE TTIK Fizikai Intézet"]
[{"$nulls":20},"Schirm Anita",null,null,"SZTE TTIK Fizikai Kémiai és Anyagtudományi Tanszék"]
[{"$nulls":20},"Sipőcz Katalin",null,null,"SZTE TTIK Földtani és Őslénytani Tanszék"]
[{"$nulls":20},"Sulyok Márton",null,null,"SZTE TTIK Gazdaság- és Társadalomföldrajz Tanszék"]
[{"$nulls":20},"Szabó Erzsébet",null,null,"SZTE TTIK Informatikai Tanszékcsoport",null,3]
[{"$nulls":20},"Szabó Tamás",null,null,"SZTE TTIK Matematika Tanszékcsoport - Bolyai Intézet",null,4]
[{"$nulls":20},"Szajbély Mihály",null,"Bachelor 1","SZTE TTIK Szerves Kémiai Tanszék",null,5]
[{"$nulls":20},"Szalai Anikó",null,"Bachelor 2","SZTE TTIK Szervetlen és Analitikai Kémiai Tanszék",null,6]
[{"$nulls":20},"Szalai Tünde",null,"Bachelor 3","SZTE TTIK Természeti Földrajzi és Geoinformatikai Tanszék",null,7]
[{"$nulls":20},"Szász Géza",null,"Master 1",null,null,8]
[{"$nulls":20},"Tóth János",null,"Master 2"]
[{"$nulls":20},"Tölgyesi Csaba",null,"PhD 1","Bachelor 1"]
[{"$nulls":20},"Tuska Tünde",null,"PhD 2","Bachelor 2"]
[{"$nulls":20},"Varga Norbert",null,"PhD 3","Bachelor 3"]
[{"$nulls":20},"Vajda Róbert",null,"Osztatlan 2","Master 1"]
[{"$nulls":20},"Váradi Szilvia",null,"Osztatlan 3","Master 2"]
[{"$nulls":20},"Virág Zoltán",null,"Osztatlan 4","PhD 1"]
[{"$nulls":20},"Wölfling János",null,"Osztatlan 5","PhD 2"]
[{"$nulls":22},"Osztatlan 6","PhD 3"]
[{"$nulls":23},"Osztatlan 2"]
[{"$nulls":23},"Osztatlan 3"]
[{"$nulls":23},"Osztatlan 4"]
[{"$nulls":23},"Osztatlan 5"]
[{"$nulls":23},"Osztatlan 6"]